[Event "10th Beirut Open-ch 2019"]
[Site "Beirut"]
[Date "2019.05.01"]
[Round "6.13"]
[White "Ghnatios, Ralph"]
[Black "Khairallah, Faisal"]
[Result "0-1"]
[ECO "B07"]
[WhiteElo "1838"]
[BlackElo "2255"]
[PlyCount "78"]
[EventDate "2019.04.25"]
[EventType "swiss"]
[EventRounds "9"]
[EventCountry "LBN"]
[TimeControl "5400+30"]

1. e4 d6 2. d4 Nf6 3. Nd2 g6 4. Ngf3 Bg7 5. c3 O-O 6. Bd3 c5 7. O-O cxd4 8. cxd4 Nc6 9. Re1 e5 10. Nb3 Bg4 11. Be3 d5 12. h3 Bxf3 13. Qxf3 exd4 14. Bg5 Ne5 15. Qg3 Nxd3 16. Qxd3 dxe4 17. Rxe4 Qd5 18. Bxf6 Bxf6 19. Rae1 Rac8 20. a3 Rc6 21. Nc1 Rfc8 22. Ne2 Rb6 23. Nf4 Qb3 24. Qxb3 Rxb3 25. Nd5 Rc6 26. Nxf6+ Rxf6 27. Rxd4 Rxb2 28. f3 Rc6 29. Re7 Rcc2 30. Rg4 Kg7 31. Kh2 Kf6 32. Re3 h5 33. Rg3 Rb1 34. h4 Rc4 35. Rh3 Ra1 36. g4 Ra2+ 37. Kg3 hxg4 38. fxg4 Ra4 39. g5+ Kg7 0-1

[Event "10th Beirut Open-ch 2019"]
[Site "Beirut"]
[Date "2019.05.01"]
[Round "6.14"]
[White "Asmar, Elie"]
[Black "Bedrosian, Danielle"]
[Result "1-0"]
[ECO "B00"]
[WhiteElo "2009"]
[BlackElo "1676"]
[PlyCount "55"]
[EventDate "2019.04.25"]
[EventType "swiss"]
[EventRounds "9"]
[EventCountry "LBN"]
[TimeControl "5400+30"]

1. d4 b6 2. e4 Bb7 3. Bd3 g6 4. f4 Bg7 5. Nf3 e6 6. O-O Ne7 7. c3 d5 8. e5 Nd7 9. Be3 h5 10. Na3 Bh6 11. Qd2 Nf5 12. Bf2 Nf8 13. Nc2 Nh7 14. a4 g5 15. Bxf5 exf5 16. fxg5 Nxg5 17. Nxg5 Bxg5 18. Be3 Bxe3+ 19. Nxe3 Bc8 20. Nxf5 Be6 21. Ng7+ Kd7 22. Nxe6 fxe6 23. Rf7+ Kc6 24. Qe2 Qg8 25. Qb5+ Kb7 26. Raf1 Qg5 27. a5 Rag8 28. a6+ 1-0

[Event "10th Beirut Open-ch 2019"]
[Site "Beirut"]
[Date "2019.05.01"]
[Round "6.15"]
[White "Moughames, Ronald"]
[Black "Habash, Mohamad"]
[Result "1-0"]
[ECO "B74"]
[WhiteElo "1721"]
[BlackElo "1806"]
[PlyCount "261"]
[EventDate "2019.04.25"]
[EventType "swiss"]
[EventRounds "9"]
[EventCountry "LBN"]
[TimeControl "5400+30"]

1. e4 c5 2. Nf3 d6 3. d4 cxd4 4. Nxd4 Nf6 5. Nc3 Nc6 6. Be2 g6 7. Be3 Bg7 8. O-O O-O 9. Nb3 Be6 10. f4 Rc8 11. Bf3 b5 12. Nxb5 Bc4 13. Nxa7 Nxa7 14. Bxa7 Bxf1 15. Kxf1 Qc7 16. Bd4 Qxc2 17. Qxc2 Rxc2 18. Bc3 Nd7 19. Nd4 Rxc3 20. bxc3 Rc8 21. Nb5 Rc5 22. a4 Nb6 23. Be2 Bxc3 24. Nxc3 Rxc3 25. a5 Nc8 26. Rb1 Rc7 27. Rb8 Kg7 28. Ba6 Ra7 29. Bxc8 Rxa5 30. Rb7 Kf6 31. Bh3 h6 32. Ke2 g5 33. fxg5+ Rxg5 34. Ke3 Re5 35. Kf4 Rc5 36. Rb2 Ra5 37. Rd2 Rc5 38. Rd5 Rc2 39. Rf5+ Kg7 40. Ke3 Ra2 41. Rf2 Ra5 42. Bd7 e6 43. Kd4 Ra7 44. Bb5 Rc7 45. Rf3 Rc2 46. Be8 Rc7 47. Rc3 Re7 48. Rc8 Ra7 49. Ke3 Kf6 50. Rc2 Ke5 51. Bc6 f5 52. exf5 Ra3+ 53. Ke2 Kxf5 54. Rb2 d5 55. Kf2 Rc3 56. Bd7 Rc7 57. g4+ Kxg4 58. Bxe6+ Kf4 59. Bxd5 Rc3 60. Rb4+ Kg5 61. Re4 Rc2+ 62. Kg3 Rc3+ 63. Kf2 Rc2+ 64. Kf3 Rc3+ 65. Ke2 Rc2+ 66. Ke3 Rxh2 67. Re8 Rb2 68. Rg8+ Kf6 69. Kf4 Rf2+ 70. Bf3 Rb2 71. Rc8 Rb6 72. Be4 Ke7 73. Bd5 Kd6 74. Be4 Ke7 75. Rh8 Rf6+ 76. Ke5 Re6+ 77. Kd5 Rd6+ 78. Kc5 Ra6 79. Rh7+ Kf8 80. Bc6 Ra1 81. Rxh6 Ke7 82. Kd5 Ra5+ 83. Kd4 Ra1 84. Ke5 Re1+ 85. Be4 Rf1 86. Rh7+ Rf7 87. Rh6 Rf1 88. Re6+ Kf7 89. Ra6 Kg7 90. Ra7+ Rf7 91. Ra6 Rf1 92. Rg6+ Kf8 93. Kd6 Kf7 94. Ke5 Ke7 95. Re6+ Kf7 96. Rb6 Kg7 97. Bf5 Re1+ 98. Kf4 Rg1 99. Bg4 Rf1+ 100. Kg5 Kf8 101. Bf5 Ke7 102. Re6+ Kf7 103. Rd6 Rg1+ 104. Bg4 Ke7 105. Rd7+ Ke8 106. Ra7 Kd8 107. Kf5 Re1 108. Kf6 Re3 109. Rd7+ Ke8 110. Rc7 Kf8 111. Be6 Rf3+ 112. Bf5 Re3 113. Rh7 Rg3 114. Rh8+ Rg8 115. Rh2 Rg1 116. Rd2 Re1 117. Bd3 Re3 118. Rb2 Rf3+ 119. Bf5 Re3 120. Rh2 Rg3 121. Rh4 Rg2 122. Rc4 Re2 123. Rc7 Re1 124. Bd3 Re3 125. Rc8+ Re8 126. Rc5 Re3 127. Rd5 Re1 128. Bb5 Kg8 129. Rd8+ Kh7 130. Bd3+ Re4 131. Bxe4+ 1-0

[Event "10th Beirut Open-ch 2019"]
[Site "Beirut"]
[Date "2019.05.01"]
[Round "6.16"]
[White "Sharbel, Marwan"]
[Black "Terzian, Kevork"]
[Result "1-0"]
[ECO "E61"]
[WhiteElo "1973"]
[BlackElo "1731"]
[PlyCount "72"]
[EventDate "2019.04.25"]
[EventType "swiss"]
[EventRounds "9"]
[EventCountry "LBN"]
[TimeControl "5400+30"]

1. d4 Nf6 2. c4 g6 3. Nc3 Bg7 4. Nf3 d6 5. Bg5 h6 6. Bd2 Nbd7 7. e4 e5 8. d5 Nc5 9. Qc2 a5 10. h3 Bd7 11. Be3 b6 12. g4 g5 13. Bg2 c6 14. O-O cxd5 15. cxd5 Rc8 16. Rac1 Ncxe4 17. Nxe5 Nxc3 18. Nxd7 Nxd7 19. bxc3 Rxc3 20. Qe4+ Kf8 21. Rxc3 Bxc3 22. Rc1 Be5 23. Rc6 Qb8 24. Qa4 Bf6 25. Qb5 Bd8 26. Be4 Ne5 27. Rc1 h5 28. Bf5 hxg4 29. Rc8 Nf3+ 30. Kf1 Qxc8 31. Bxc8 gxh3 32. Bxh3 Rxh3 33. Qd7 Rh1+ 34. Kg2 Rg1+ 35. Kxf3 g4+ 36. Ke4 Bh4 1-0

[Event "10th Beirut Open-ch 2019"]
[Site "Beirut"]
[Date "2019.05.01"]
[Round "6.17"]
[White "Khechen, Nabil E"]
[Black "Berbari, Imad"]
[Result "0-1"]
[ECO "B06"]
[WhiteElo "1933"]
[BlackElo "1666"]
[PlyCount "102"]
[EventDate "2019.04.25"]
[EventType "swiss"]
[EventRounds "9"]
[EventCountry "LBN"]
[TimeControl "5400+30"]

1. e4 g6 2. Nc3 Bg7 3. d4 d6 4. Bc4 e6 5. f4 c6 6. Bb3 Qh4+ 7. g3 Qd8 8. Nf3 Nd7 9. Be3 b5 10. a4 b4 11. Ne2 a5 12. Bc4 Ba6 13. Bxa6 Rxa6 14. Qd3 Ra8 15. Nd2 Qc7 16. Nc4 d5 17. Nd2 dxe4 18. Nxe4 Ngf6 19. c4 bxc3 20. Nxf6+ Nxf6 21. bxc3 O-O 22. Qc4 Rab8 23. Bc1 h5 24. Ba3 Rfc8 25. Nc1 Nd5 26. Qd3 Qd8 27. O-O Nxc3 28. Bc5 Nd5 29. Qd2 Rb7 30. Nd3 Bf8 31. Bxf8 Kxf8 32. Nc5 Rb4 33. Rae1 Kg8 34. Qd3 Nc7 35. Rd1 Qd5 36. Rfe1 Rb2 37. Re2 Rcb8 38. Red2 Qa2 39. Qc3 Rxd2 40. Rxd2 Rb1+ 41. Kf2 Qd5 42. Qf3 Qc4 43. Kg2 Qc1 44. Rf2 Nd5 45. Nd3 Qc3 46. Qe4 Rd1 47. Rf3 Qc2+ 48. Kh3 Qxa4 49. Nc5 Qxd4 50. Qe2 Rd2 51. Nxe6 Qb2 0-1

[Event "10th Beirut Open-ch 2019"]
[Site "Beirut"]
[Date "2019.05.01"]
[Round "6.18"]
[White "Nassar, Marc"]
[Black "Salameh, Sleiman"]
[Result "1-0"]
[ECO "B19"]
[WhiteElo "1909"]
[BlackElo "1621"]
[PlyCount "71"]
[EventDate "2019.04.25"]
[EventType "swiss"]
[EventRounds "9"]
[EventCountry "LBN"]
[TimeControl "5400+30"]

1. e4 c6 2. d4 d5 3. Nc3 dxe4 4. Nxe4 Bf5 5. Ng3 Bg6 6. h4 h6 7. Nf3 Nf6 8. Ne5 Bh7 9. c3 Nbd7 10. Nf3 e6 11. Bd3 Bxd3 12. Qxd3 Bd6 13. Bd2 Bxg3 14. fxg3 Nc5 15. Qe2 Nce4 16. Bf4 Qd5 17. Ne5 Qb5 18. Qc2 Qd5 19. Qe2 Qb5 20. Nc4 Qh5 21. Qf3 Qb5 22. b3 Qd5 23. O-O-O b5 24. Ne5 O-O 25. g4 h5 26. gxh5 Nxh5 27. Qxh5 Nf2 28. Qf3 Qxf3 29. gxf3 Nxh1 30. Rxh1 Rac8 31. Rg1 Kh7 32. h5 c5 33. Nd7 Rfe8 34. h6 cxd4 35. Rxg7+ Kh8 36. Nf6 1-0

[Event "10th Beirut Open-ch 2019"]
[Site "Beirut"]
[Date "2019.05.01"]
[Round "6.19"]
[White "Attieh, Wael"]
[Black "Al Azmi, Khalaf"]
[Result "1/2-1/2"]
[ECO "C64"]
[WhiteElo "1823"]
[BlackElo "1740"]
[PlyCount "60"]
[EventDate "2019.04.25"]
[EventType "swiss"]
[EventRounds "9"]
[EventCountry "LBN"]
[TimeControl "5400+30"]

1. e4 e5 2. Nf3 Nc6 3. Bb5 Bc5 4. Nc3 Nge7 5. Na4 Bb6 6. Nxb6 axb6 7. d3 O-O 8. O-O d6 9. h3 h6 10. Be3 Ng6 11. Qd2 Nh4 12. Nxh4 Qxh4 13. f4 f5 14. exf5 Bxf5 15. fxe5 Nxe5 16. Rf4 Qg3 17. d4 Ng6 18. Rf3 Qh4 19. Bc4+ Kh7 20. Raf1 Be4 21. Rxf8 Rxf8 22. Rxf8 Nxf8 23. Bd3 d5 24. Bf2 Qe7 25. Qe3 Nd7 26. c4 c6 27. Bg3 Nf6 28. Be5 Bxd3 29. Qxd3+ Ne4 30. cxd5 cxd5 1/2-1/2

[Event "10th Beirut Open-ch 2019"]
[Site "Beirut"]
[Date "2019.05.01"]
[Round "6.20"]
[White "Hasan Ali Prince"]
[Black "Slim, Nadim"]
[Result "1/2-1/2"]
[ECO "B22"]
[WhiteElo "1854"]
[BlackElo "1781"]
[PlyCount "78"]
[EventDate "2019.04.25"]
[EventType "swiss"]
[EventRounds "9"]
[EventCountry "LBN"]
[TimeControl "5400+30"]

1. e4 c5 2. Nf3 Nc6 3. c3 d5 4. exd5 Qxd5 5. d4 cxd4 6. cxd4 e5 7. Nxe5 Bb4+ 8. Bd2 Qxd4 9. Nxc6 bxc6 10. Bxb4 Qxb4+ 11. Qd2 Qxd2+ 12. Nxd2 Nf6 13. Bc4 O-O 14. O-O Rd8 15. Rfd1 Be6 16. Bxe6 fxe6 17. Nb3 Kf7 18. Kf1 Nd5 19. Rac1 Rd6 20. Rd4 Rb8 21. Ra4 Rb7 22. Nc5 Rxb2 23. Rxa7+ Kg6 24. Re1 Nc3 25. Nxe6 Rdd2 26. Nf4+ Kh6 27. Nh3 Rxa2 28. Rc7 Ra6 29. Re6+ g6 30. g3 Nb5 31. Rcxc6 Ra1+ 32. Re1 Rxe1+ 33. Kxe1 Ra2 34. Kf1 Nd4 35. Rc5 Nf3 36. Kg2 Ne1+ 37. Kf1 Nf3 38. Kg2 Ne1+ 39. Kh1 Nd3 1/2-1/2

[Event "10th Beirut Open-ch 2019"]
[Site "Beirut"]
[Date "2019.05.01"]
[Round "6.21"]
[White "Haidar, Wassim"]
[Black "Kabalan, Farah"]
[Result "1-0"]
[ECO "C24"]
[WhiteElo "1707"]
[BlackElo "1602"]
[PlyCount "71"]
[EventDate "2019.04.25"]
[EventType "swiss"]
[EventRounds "9"]
[EventCountry "LBN"]
[TimeControl "5400+30"]

1. e4 e5 2. Bc4 Nf6 3. d3 c6 4. Nf3 d5 5. exd5 cxd5 6. Bb3 Nc6 7. h3 h6 8. O-O Bd6 9. Re1 O-O 10. Nc3 Bb8 11. Nh2 Nd4 12. Ne2 Nxb3 13. axb3 Nh5 14. g4 Nf4 15. Nxf4 exf4 16. Qf3 g5 17. Bd2 a5 18. Qe2 Bd6 19. Bc3 b5 20. Bd4 Bb7 21. Nf3 Re8 22. Qd2 b4 23. Rxe8+ Qxe8 24. Re1 Qd8 25. Qe2 Bf8 26. Qe5 f6 27. Qxf6 Qxf6 28. Bxf6 Kf7 29. Bd4 Bd6 30. Ra1 Bc7 31. Re1 Re8 32. Rxe8 Kxe8 33. Bg7 Bd8 34. Bxh6 Kf7 35. Bxg5 Bxg5 36. Nxg5+ 1-0

[Event "10th Beirut Open-ch 2019"]
[Site "Beirut"]
[Date "2019.05.01"]
[Round "6.22"]
[White "Arkadan, Adib"]
[Black "Djikerian, Rafi"]
[Result "1-0"]
[ECO "A08"]
[WhiteElo "1686"]
[BlackElo "1833"]
[PlyCount "101"]
[EventDate "2019.04.25"]
[EventType "swiss"]
[EventRounds "9"]
[EventCountry "LBN"]
[TimeControl "5400+30"]

1. Nf3 c5 2. g3 Nc6 3. Bg2 g6 4. O-O d5 5. d3 Bg7 6. Nbd2 Nf6 7. Re1 O-O 8. e4 dxe4 9. Nxe4 Nxe4 10. Rxe4 Bf5 11. Re1 Qd7 12. Nd2 Rad8 13. Ne4 b6 14. Nc3 Nd4 15. Be3 Bg4 16. f3 Bh3 17. Bxd4 Bxd4+ 18. Kh1 Bxg2+ 19. Kxg2 b5 20. Qc1 e6 21. Ne4 Qc6 22. c3 Bg7 23. Qe3 Rd5 24. Rad1 Rfd8 25. Rd2 h6 26. Nf2 Re5 27. Ne4 f5 28. d4 cxd4 29. cxd4 Red5 30. Nc3 Rxd4 31. Rxd4 Rxd4 32. Qxe6+ Qxe6 33. Rxe6 Rd2+ 34. Kh3 Rxb2 35. Nd5 Rxa2 36. Re8+ Kf7 37. Re7+ Kf8 38. Rb7 a6 39. Nc7 Be5 40. Ne6+ Ke8 41. Rb6 g5 42. Nc5 h5 43. Re6+ Kf7 44. Rxe5 g4+ 45. fxg4 fxg4+ 46. Kh4 Rxh2+ 47. Kg5 a5 48. Nb7 Rh3 49. Nd6+ Kf8 50. Kf6 Kg8 51. Kg6 1-0

[Event "10th Beirut Open-ch 2019"]
[Site "Beirut"]
[Date "2019.05.01"]
[Round "6.23"]
[White "Muhssen, Fared Saleh"]
[Black "Eid, Wissam"]
[Result "1-0"]
[ECO "D66"]
[WhiteElo "1898"]
[BlackElo "1568"]
[PlyCount "117"]
[EventDate "2019.04.25"]
[EventType "swiss"]
[EventRounds "9"]
[EventCountry "LBN"]
[TimeControl "5400+30"]

1. d4 d5 2. c4 e6 3. Nc3 Nf6 4. Bg5 c6 5. e3 Bd6 6. Nf3 O-O 7. Bd3 dxc4 8. Bxc4 b5 9. Bd3 Nbd7 10. e4 Be7 11. O-O Bb7 12. Rc1 a6 13. e5 Ne8 14. Bxe7 Qxe7 15. Ne4 h6 16. Qe2 f6 17. Nc5 Nxc5 18. Rxc5 f5 19. Bc2 Nc7 20. Bb3 a5 21. Rfc1 a4 22. Bd1 Nd5 23. Qd2 Rfc8 24. Be2 Qe8 25. Ne1 Qg6 26. Bf3 Qg5 27. Qxg5 hxg5 28. Bxd5 cxd5 29. Nd3 Rxc5 30. Nxc5 Rc8 31. a3 Kf7 32. Kf1 f4 33. f3 Rc7 34. Ke1 Bc8 35. Kd2 Bd7 36. Nxd7 Rxd7 37. Rc5 Rb7 38. Kc3 Kg6 39. Kb4 Kf5 40. h3 g6 41. Rxb5 Rc7 42. Rc5 Rb7+ 43. Rb5 Rc7 44. Kxa4 Rc2 45. Rb8 g4 46. hxg4+ Kg5 47. b4 Kh4 48. Rb6 Kg3 49. Rxe6 Kxg2 50. Rxg6 Kxf3 51. e6 Kg2 52. b5 f3 53. b6 Rc8 54. Rf6 f2 55. Kb5 f1=Q+ 56. Rxf1 Kxf1 57. e7 Ke2 58. b7 Re8 59. Kc6 1-0

[Event "10th Beirut Open-ch 2019"]
[Site "Beirut"]
[Date "2019.05.01"]
[Round "6.24"]
[White "Al Onizan, Fahad M"]
[Black "Tarraf, Tarraf"]
[Result "0-1"]
[ECO "B01"]
[WhiteElo "1822"]
[BlackElo "1647"]
[PlyCount "66"]
[EventDate "2019.04.25"]
[EventType "swiss"]
[EventRounds "9"]
[EventCountry "LBN"]
[TimeControl "5400+30"]

1. e4 d5 2. exd5 Nf6 3. d4 Bg4 4. f3 Bf5 5. c4 e6 6. dxe6 Nc6 7. exf7+ Kxf7 8. Be3 Bb4+ 9. Nc3 Re8 10. Kf2 Rxe3 11. Kxe3 Qe7+ 12. Kf2 Nxd4 13. Bd3 Bc5 14. Kf1 Qe3 15. Bxf5 Nxf5 16. Nh3 c6 17. Qc2 Nd4 18. Qd1 Rd8 19. Na4 Ne6 20. Qe2 Qd4 21. Re1 Re8 22. Rd1 Qh4 23. Nxc5 Nxc5 24. Qc2 Ne6 25. Qc3 c5 26. Qe1 Qxc4+ 27. Kg1 Nd4 28. Ng5+ Kg8 29. Ne4 Ne2+ 30. Kf2 Nxe4+ 31. fxe4 Qxe4 32. Qd2 Rf8+ 33. Ke1 Nd4+ 0-1

[Event "10th Beirut Open-ch 2019"]
[Site "Beirut"]
[Date "2019.05.01"]
[Round "7.3"]
[White "Bajarani, Ulvi"]
[Black "Kotanjian, Tigran"]
[Result "1/2-1/2"]
[ECO "E04"]
[WhiteElo "2470"]
[BlackElo "2458"]
[Annotator "ChessBase"]
[PlyCount "85"]
[EventDate "2019.04.25"]
[EventType "swiss"]
[EventRounds "9"]
[EventCountry "LBN"]
[SourceTitle "playchess.com"]
[Source "ChessBase"]
[SourceQuality "1"]
[TimeControl "5400+30"]

1. d4 {[%emt 0:00:00]} d5 {[%emt 0:00:00]} 2. Nf3 {[%emt 0:00:00]} Nf6 {[%emt 0:00:00]} 3. c4 {[%emt 0:00:00]} e6 {[%emt 0:00:00]} 4. g3 {[%emt 0:00:00]} dxc4 {[%emt 0:00:00]} 5. Bg2 {[%emt 0:00:00]} c5 {[%emt 0:00:02]} 6. O-O {[%emt 0:00:03]} Nc6 {[%emt 0:00:05]} 7. dxc5 {[%emt 0:00:06]} Qxd1 {[%emt 0:00:06]} 8. Rxd1 {[%emt 0:00:04]} Bxc5 {[%emt 0:00:05]} 9. Nbd2 {[%emt 0:00:07]} c3 {[%emt 0:00:05]} 10. bxc3 {[%emt 0:00:07]} O-O {[%emt 0:00:04]} 11. Nb3 {[%emt 0:00:08]} Be7 {[%emt 0:00:06]} 12. c4 {[%emt 0:00:06]} Bd7 {[%emt 0:00:07]} 13. Bb2 {[%emt 0:00:31]} Rfd8 {[%emt 0:00:07]} 14. Nfd4 {[%emt 0:01:03]} Rac8 {[%emt 0:00:10]} 15. Nb5 {[%emt 0:01:30]} b6 {[%emt 0:00:07]} 16. Rac1 {[%emt 0:03:08]} a5 {[%emt 0:03:53]} 17. c5 {[%emt 0:04:59]} bxc5 {[%emt 0:03:58]} 18. Nxc5 {[%emt 0:06:40]} Be8 {[%emt 0:00:38]} 19. Nb7 {[%emt 0:03:32]} Rxd1+ {[%emt 0:00:12]} 20. Rxd1 {[%emt 0:00:04]} Rb8 {[%emt 0:07:30]} 21. N5d6 {[%emt 0:13:34]} Bxd6 {[%emt 0:00:52]} 22. Nxd6 {[%emt 0:00:06]} Rxb2 {[%emt 0:00:46]} 23. Nxe8 {[%emt 0:00:04]} Nd5 {[%emt 0:01:57]} 24. Bxd5 {[%emt 0:09:18]} exd5 {[%emt 0:00:07]} 25. Rxd5 {[%emt 0:00:03]} Rxa2 {[%emt 0:00:29]} 26. Rc5 {[%emt 0:07:02]} Nd4 {[%emt 0:01:26]} 27. Nd6 {[%emt 0:00:21]} g6 {[%emt 0:06:27]} 28. Rc4 {[%emt 0:08:09]} Ra1+ {[%emt 0:03:57]} 29. Kg2 {[%emt 0:00:05]} Nxe2 {[%emt 0:00:49]} 30. Rc7 {[%emt 0:00:59]} a4 {[%emt 0:01:52]} 31. Rc2 {[%emt 0:02:47]} Nc1 {[%emt 0:06:00]} 32. Nb5 {[%emt 0:02:31]} Nd3 {[%emt 0:00:46]} 33. Rc3 {[%emt 0:00:07]} Ne1+ {[%emt 0:04:02]} 34. Kf1 {[%emt 0:00:57]} Nf3+ {[%emt 0:01:57]} 35. Kg2 {[%emt 0:00:09]} Nd2 {[%emt 0:00:25]} 36. Rc2 {[%emt 0:02:45]} Nb3 {[%emt 0:01:52]} 37. Rc4 {[%emt 0:01:18]} Ra2 {[%emt 0:01:12]} 38. g4 {[%emt 0:03:30]} Kg7 {[%emt 0:05:18]} 39. g5 {[%emt 0:00:23]} Nd2 {[%emt 0:12:26]} 40. Rf4 {[%emt 0:04:45]} Rc2 {[%emt 0:05:32]} 41. Nd6 {[%emt 0:04:42]} a3 {[%emt 0:01:10]} 42. Rxf7+ {[%emt 0:00:04]} Kg8 {[%emt 0:00:10]} 43. Re7 {[%emt 0:00:04]} 1/2-1/2

[Event "10th Beirut Open-ch 2019"]
[Site "Beirut"]
[Date "2019.05.01"]
[Round "7.4"]
[White "Raetsky, Alexander"]
[Black "Kaloust, Giorgio"]
[Result "1-0"]
[ECO "A40"]
[WhiteElo "2394"]
[BlackElo "1919"]
[Annotator "ChessBase"]
[PlyCount "109"]
[EventDate "2019.04.25"]
[EventType "swiss"]
[EventRounds "9"]
[EventCountry "LBN"]
[SourceTitle "playchess.com"]
[Source "ChessBase"]
[SourceQuality "1"]
[TimeControl "5400+30"]

1. d4 {[%emt 0:00:18]} Nf6 {[%emt 0:00:00]} 2. c4 {[%emt 0:00:57]} e6 {[%emt 0:00:00]} 3. g3 {[%emt 0:00:08]} Bb4+ {[%emt 0:00:40]} 4. Nd2 {[%emt 0:00:19]} d5 {[%emt 0:00:11]} 5. Bg2 {[%emt 0:00:52]} O-O {[%emt 0:00:23]} 6. Qc2 {[%emt 0:07:07]} b6 {[%emt 0:02:13]} 7. Ngf3 {[%emt 0:01:05]} Bb7 {[%emt 0:02:02]} 8. cxd5 {[%emt 0:07:04]} exd5 {[%emt 0:03:11]} 9. O-O {[%emt 0:00:10]} Re8 {[%emt 0:00:07]} 10. Re1 {[%emt 0:06:04]} Nbd7 {[%emt 0:03:29]} 11. a3 {[%emt 0:01:23]} Bd6 {[%emt 0:00:36]} 12. b4 {[%emt 0:05:56]} c5 {[%emt 0:01:30]} 13. bxc5 {[%emt 0:05:52]} bxc5 {[%emt 0:00:17]} 14. dxc5 {[%emt 0:00:30]} Nxc5 {[%emt 0:03:15]} 15. Bb2 {[%emt 0:18:43]} Rc8 {[%emt 0:07:19]} 16. Bh3 {[%emt 0:04:52]} Rb8 {[%emt 0:04:39]} 17. Nd4 {[%emt 0:03:12]} Qb6 {[%emt 0:09:18]} 18. Nf5 {[%emt 0:10:52]} Bf8 {[%emt 0:00:57]} 19. Bd4 {[%emt 0:00:23]} Rbc8 {[%emt 0:07:01]} 20. Rab1 {[%emt 0:06:42]} Ne6 {[%emt 0:12:40]} 21. Qd3 {[%emt 0:08:14]} Ba6 {[%emt 0:03:04]} 22. Bxb6 {[%emt 0:04:41]} Bxd3 {[%emt 0:00:06]} 23. exd3 {[%emt 0:00:26]} axb6 {[%emt 0:00:18]} 24. Nf3 {[%emt 0:01:12]} Rc3 {[%emt 0:05:36]} 25. Bf1 {[%emt 0:03:08]} Rb8 {[%emt 0:02:30]} 26. a4 {[%emt 0:00:22]} g6 {[%emt 0:03:05]} 27. N5d4 {[%emt 0:00:20]} Nxd4 {[%emt 0:02:38]} 28. Nxd4 {[%emt 0:00:02]} Bc5 {[%emt 0:00:38]} 29. Nb5 {[%emt 0:00:58]} Rc2 {[%emt 0:00:21]} 30. d4 {[%emt 0:00:45]} Bf8 {[%emt 0:00:54]} 31. Bd3 {[%emt 0:01:23]} Rd2 {[%emt 0:04:05]} 32. Red1 {[%emt 0:00:14]} Ra2 {[%emt 0:04:09]} 33. Ra1 {[%emt 0:00:19]} Rxa1 {[%emt 0:01:35]} 34. Rxa1 {[%emt 0:00:01]} Ne4 {[%emt 0:02:16]} 35. Nc7 {[%emt 0:02:01]} Nd2 {[%emt 0:05:38]} 36. Nxd5 {[%emt 0:00:25]} Nf3+ {[%emt 0:00:26]} 37. Kg2 {[%emt 0:00:01]} Nxd4 {[%emt 0:00:09]} 38. Rb1 {[%emt 0:00:36]} Bc5 {[%emt 0:02:26]} 39. a5 {[%emt 0:00:44]} b5 {[%emt 0:01:56]} 40. Nf6+ {[%emt 0:00:54]} Kg7 {[%emt 0:01:14]} 41. Nd7 {[%emt 0:00:01]} Rc8 {[%emt 0:01:25]} 42. Rc1 {[%emt 0:00:54]} Ne6 {[%emt 0:02:41]} 43. Bxb5 {[%emt 0:00:28]} Ra8 {[%emt 0:02:15]} 44. Nxc5 {[%emt 0:00:19]} Nxc5 {[%emt 0:00:08]} 45. Rxc5 {[%emt 0:00:02]} Rxa5 {[%emt 0:00:07]} 46. Rd5 {[%emt 0:00:07]} h6 {[%emt 0:01:20]} 47. Bc6 {[%emt 0:00:35]} Ra6 {[%emt 0:00:17]} 48. Bb7 {[%emt 0:00:07]} Rf6 {[%emt 0:01:27]} 49. Rd7 {[%emt 0:00:09]} g5 {[%emt 0:00:29]} 50. f3 {[%emt 0:00:22]} Rb6 {[%emt 0:00:28]} 51. Bd5 {[%emt 0:00:13]} Rf6 {[%emt 0:00:10]} 52. Kf2 {[%emt 0:00:22]} Kg6 {[%emt 0:00:24]} 53. Ke3 {[%emt 0:00:06]} Kg7 {[%emt 0:00:15]} 54. Ke4 {[%emt 0:00:14]} Kg6 {[%emt 0:00:26]} 55. Rc7 {[%emt 0:02:34]} 1-0

[Event "10th Beirut Open-ch 2019"]
[Site "Beirut"]
[Date "2019.05.01"]
[Round "7.5"]
[White "Dimitrijevic, Aleksandra"]
[Black "Eid, Fadi"]
[Result "1/2-1/2"]
[ECO "A10"]
[WhiteElo "2164"]
[BlackElo "2331"]
[Annotator "NA"]
[PlyCount "61"]
[EventDate "2019.04.25"]
[EventType "swiss"]
[EventRounds "9"]
[EventCountry "LBN"]
[SourceTitle "playchess.com"]
[Source "ChessBase"]
[SourceQuality "1"]
[TimeControl "5400+30"]

1. c4 b6 {[%emt 0:00:00]} 2. Nf3 {[%emt 0:00:19]} Bb7 {[%emt 0:00:00]} 3. e3 {[%emt 0:01:28]} e6 {[%emt 0:00:07]} 4. b3 {[%emt 0:00:24]} Nf6 {[%emt 0:00:14]} 5. Bb2 {[%emt 0:00:06]} g6 {[%emt 0:00:11]} 6. Be2 {[%emt 0:00:21]} Bg7 {[%emt 0:00:01]} 7. Qc2 {[%emt 0:00:17]} O-O {[%emt 0:00:09]} 8. d3 {[%emt 0:00:40]} c5 {[%emt 0:00:34]} 9. Nbd2 {[%emt 0:02:44]} Nc6 {[%emt 0:03:53]} 10. a3 {[%emt 0:00:18]} d5 {[%emt 0:01:00]} 11. Nf1 {[%emt 0:00:31]} Nd7 {[%emt 0:02:29]} 12. Bxg7 {[%emt 0:00:25]} Kxg7 {[%emt 0:00:02]} 13. Ng3 {[%emt 0:00:28]} Qf6 {[%emt 0:00:25]} 14. O-O {[%emt 0:00:23]} h5 {[%emt 0:00:17]} 15. h3 {[%emt 0:00:28]} Rh8 {[%emt 0:01:58]} 16. Nh2 {[%emt 0:00:56]} Ne7 {[%emt 0:02:26]} 17. f4 {[%emt 0:00:23]} dxc4 {[%emt 0:01:15]} 18. bxc4 {[%emt 0:06:13]} Nf5 {[%emt 0:00:25]} 19. Nxf5+ {[%emt 0:00:49]} exf5 {[%emt 0:00:16]} 20. Rae1 {[%emt 0:00:34]} Rhe8 {[%emt 0:03:54]} 21. Bf3 {[%emt 0:01:23]} Bxf3 {[%emt 0:02:58]} 22. Nxf3 {[%emt 0:00:09]} Re7 {[%emt 0:00:28]} 23. Ng5 {[%emt 0:05:38]} Qd6 {[%emt 0:05:15]} 24. Qc3+ {[%emt 0:02:11]} Kg8 {[%emt 0:06:15]} 25. Re2 {[%emt 0:05:50]} Nf8 {[%emt 0:06:44]} 26. Rd1 {[%emt 0:02:11]} Rae8 {[%emt 0:00:31]} 27. Rde1 {[%emt 0:00:50]} Rd8 {[%emt 0:00:58]} 28. Rd2 {[%emt 0:00:46]} Rde8 {[%emt 0:00:30]} 29. Rde2 {[%emt 0:00:08]} Rd8 {[%emt 0:08:25]} 30. Rd2 {[%emt 0:00:35]} Rde8 {[%emt 0:00:09]} 31. Rde2 1/2-1/2